bitfinex/quotes_SOLUSD_20250305
["timestamp","ask_amount","ask_price","bid_price","bid_amount"]
[1741168873796,0.03,146.37,146.36,180.55697982]
[1741168874169,0.03,146.37,146.36,187.38937982]
[1741168874697,0.03,146.37,146.36,180.55697982]
[1741168876271,0.03,146.37,146.36,187.38937982]
[1741168876469,0.03,146.37,146.36,180.55697982]
[1741168876794,0.03,146.37,146.36,187.38937982]
[1741168877111,0.03,146.41,146.37,18.4912]
[1741168877307,0.03,146.41,146.4,31.49687982]
[1741168877609,0.03,146.41,146.4,10.6601]
[1741168879399,0.03,146.41,146.4,149.0601]
[1741168883800,0.14216157,146.4,146.37,10.6931]
[1741168884183,6.831,146.39,146.37,10.6931]
[1741168884810,0.14216157,146.38,146.37,10.6931]
[1741168885310,6.831,146.39,146.37,10.6931]
[1741168886988,0.14216157,146.38,146.37,10.6931]
[1741168887307,6.831,146.39,146.37,10.6931]
[1741168887618,18.933972,146.38,146.37,0.033]
[1741168889291,25.765472,146.38,146.37,0.033]
[1741168889515,95.61660593,146.38,146.28,10.6601]
[1741168889689,0.28432314,146.36,146.28,10.6601]
[1741168889890,18.933972,146.34,146.28,10.6601]
[1741168890419,29.40950593,146.34,146.28,10.6601]
[1741168890787,18.933972,146.32,146.28,10.6601]
[1741168890990,18.933972,146.3,146.23,10.6601]
[1741168891518,0.14216157,146.27,146.23,10.6601]
[1741168892118,0.14216157,146.28,146.23,10.6601]
[1741168892324,6.8357,146.29,146.23,10.6601]
[1741168892830,6.8357,146.29,146.23,149.0601]
[1741168895824,6.8352,146.31,146.23,155.8984]
[1741168896121,6.97656157,146.32,146.24,31.51069152]
[1741168896319,0.14216157,146.32,146.25,31.51069152]
[1741168896700,6.8339,146.33,146.24,31.51069152]
[1741168897015,0.14216157,146.32,146.24,31.51069152]
[1741168897726,0.14216157,146.31,146.24,149.0601]
[1741168899833,0.28432314,146.33,146.24,149.0601]
[1741168900019,0.14216157,146.31,146.24,155.898]
[1741168900529,6.8343,146.32,146.24,155.898]
[1741168901034,6.8334,146.34,146.24,187.40869152]
[1741168901235,6.8334,146.34,146.25,31.51069152]
[1741168901421,0.14216157,146.33,146.24,187.40869152]
[1741168901732,0.28432314,146.33,146.24,149.0601]
[1741168901930,0.28432314,146.31,146.24,149.0601]
[1741168902109,0.28432314,146.31,146.24,10.6601]
[1741168902612,18.933972,146.31,146.24,10.6601]
[1741168902833,0.14216157,146.28,146.24,10.6601]
[1741168903208,0.28432314,146.29,146.24,10.6601]
[1741168904033,7.12012314,146.29,146.24,10.6601]
[1741168907333,110.46113393,146.33,146.24,17.4979]
[1741168907539,6.8343,146.32,146.24,187.40859152]
[1741168908217,7.11832314,146.33,146.24,187.40859152]
[1741168909338,24.20292314,146.33,146.24,149.0601]
[1741168909522,0.28432314,146.31,146.24,149.0601]
[1741168910738,0.14216157,146.29,146.24,155.898]
[1741168911141,0.28432314,146.31,146.24,155.898]
[1741168911527,6.97596157,146.33,146.24,187.40869152]
[1741168911715,6.8338,146.33,146.24,187.40869152]
[1741168912117,0.14216157,146.32,146.24,155.898]
[1741168912643,0.28432314,146.32,146.24,155.898]
[1741168912849,0.14216157,146.32,146.24,155.898]
[1741168913144,0.14216157,146.32,146.24,175.58793826]
[1741168914344,18.933972,146.33,146.24,155.898]
[1741168914862,0.14216157,146.31,146.24,155.898]
[1741168916149,6.97736157,146.31,146.24,155.898]
[1741168916841,6.97736157,146.31,146.24,155.931]
[1741168918952,6.8338,146.33,146.25,19.68993826]
[1741168919433,6.8338,146.33,146.24,192.71603826]
[1741168919833,6.8338,146.33,146.24,175.62093826]
[1741168920554,0.28432314,146.32,146.24,155.931]
[1741168920857,0.14216157,146.32,146.24,175.62093826]
[1741168921034,6.8338,146.33,146.24,175.62093826]
[1741168922564,0.14216157,146.32,146.24,175.62093826]
[1741168923470,0.28432314,146.3,146.24,149.0931]
[1741168923661,18.933972,146.3,146.24,10.6931]
[1741168924946,0.14216157,146.3,146.24,10.6931]
[1741168925181,7.11842314,146.33,146.24,155.931]
[1741168925469,25.768072,146.33,146.24,155.931]
[1741168926367,0.14216157,146.31,146.24,155.931]
[1741168927154,6.97626157,146.33,146.24,155.931]
[1741168927354,0.14216157,146.32,146.24,155.931]
[1741168927574,0.14216157,146.32,146.24,173.0261]
[1741168928486,7.11872314,146.32,146.24,155.931]
[1741168933284,0.14216157,146.25,146.24,0.033]
[1741168933780,0.14216157,146.26,146.24,0.033]
[1741168934077,18.64964886,146.3,146.24,0.033]
[1741168934078,20.21994886,146.3,146.24,0.033]
[1741168934288,1.5703,146.3,146.24,149.0931]
[1741168934875,0.14216157,146.29,146.24,149.0931]
[1741168935385,0.14216157,146.28,146.24,10.6931]
[1741168935886,1.79096157,146.25,146.24,0.0001]
[1741168936077,1.79096157,146.25,146.22,0.033]
[1741168936279,0.14216157,146.24,146.22,0.033]
[1741168937057,0.14216157,146.23,146.22,0.033]
[1741168939176,0.28432314,146.25,146.22,0.033]
[1741168939786,18.933972,146.25,146.22,0.033]
[1741168940172,0.14216157,146.25,146.22,10.6931]
[1741168940569,7.76011648,146.28,146.22,10.6931]
[1741168940570,82.9,146.29,146.22,10.6931]
[1741168940775,6.8357,146.29,146.22,10.6931]
[1741168941087,18.933972,146.28,146.22,10.6931]
[1741168941282,0.28432314,146.28,146.22,10.6931]
[1741168941474,0.03,146.24,146.22,10.6931]
[1741168945770,0.03,146.24,146.23,19.68993826]
[1741168946292,0.03,146.24,146.22,164.96173826]
[1741168946495,0.03,146.24,146.23,19.68993826]
[1741168948174,0.03,146.24,146.22,145.2718]
[1741168948413,0.03,146.24,146.22,164.96173826]
[1741168949274,0.03,146.24,146.22,247.26173826]
[1741168952402,0.03,146.24,146.22,220.733]
[1741168954099,0.03,146.24,146.22,227.5715]
[1741168954293,0.03,146.24,146.23,19.68993826]
[1741168954604,0.03,146.24,146.22,247.26143826]
[1741168954783,0.03,146.24,146.22,227.5715]
[1741168954982,0.03,146.24,146.22,220.733]
[1741168960786,0.03,146.24,146.22,227.5718]
[1741168961602,0.03,146.24,146.22,220.733]
[1741168962385,0.03,146.24,146.22,227.572]
[1741168962900,0.03,146.24,146.22,82.333]
[1741168963091,0.03,146.24,146.22,89.1719]
[1741168963607,0.03,146.24,146.22,82.333]
[1741168964308,0.03,146.24,146.22,89.1718]
[1741168965189,0.03,146.24,146.22,82.333]
[1741168968296,0.03,146.24,146.22,89.1719]
[1741168968502,0.03,146.24,146.22,82.333]
[1741168972329,0.03,146.24,146.22,89.1719]
[1741168972505,0.03,146.24,146.22,101.78211778]
[1741168973020,0.03,146.24,146.22,240.18211778]
[1741168973322,0.03,146.24,146.23,12.61021778]
[1741168973527,0.03,146.24,146.22,240.18211778]
[1741168973725,0.03,146.24,146.22,227.5719]
[1741168974724,0.03,146.24,146.22,220.733]
[1741168980426,0.03,146.24,146.22,82.333]
[1741168984335,0.03,146.24,146.22,233.34321778]
[1741168984520,0.03,146.24,146.23,12.61021778]
[1741168985635,0.03,146.24,146.23,240.14871778]
[1741168986037,0.03,146.24,146.23,227.5385]
[1741168986336,0.03,146.24,146.23,220.7]
[1741168986640,0.03,146.24,146.23,227.5385]
[1741168987021,0.03,146.24,146.23,220.7]
[1741168987221,0.03,146.24,146.23,82.3]
[1741168988741,0.03,146.24,146.23,89.1385]
[1741168990244,0.03,146.24,146.23,247.23237683]
[1741168991612,0.03,146.24,146.23,227.5385]
[1741168991818,0.03,146.24,146.23,220.7]
[1741168992949,0.03,146.24,146.23,82.3]
[1741168993635,0.17216157,146.24,146.23,82.3]
[1741168993822,25.772472,146.23,146.22,0.033]
[1741168994022,0.14216157,146.21,146.19,82.333]
[1741168996157,25.63171043,146.2,146.19,82.333]
[1741168996536,18.64964886,146.2,146.19,82.333]
[1741168998338,25.48954886,146.2,146.19,82.333]
[1741168998537,25.63171043,146.2,146.19,82.333]
[1741169001062,25.773872,146.2,146.19,0.033]
[1741169001557,18.79181043,146.2,146.19,0.033]
[1741169001862,25.63171043,146.2,146.19,0.033]
[1741169003240,18.79181043,146.2,146.19,0.033]
[1741169004042,18.64964886,146.2,146.19,0.033]
[1741169004982,0.03,146.22,146.19,220.733]
[1741169005279,0.03,146.22,146.21,19.69387683]
[1741169006132,0.03,146.22,146.21,20.0]
[1741169006338,0.03,146.22,146.21,220.7]
[1741169011573,0.03,146.22,146.21,82.3]
[1741169013248,0.03,146.22,146.21,89.1394]
[1741169013467,0.03,146.22,146.21,227.5394]
[1741169014366,36.88353748,146.32,146.26,0.28432314]
[1741169014557,36.88353748,146.32,146.3,19.69387683]
[1741169014759,5.635e-05,146.31,146.3,268.1812768]
[1741169014976,15.32926695,146.32,146.3,268.1812768]
[1741169015285,5.635e-05,146.33,146.31,26.52867683]
[1741169015480,5.635e-05,146.33,146.32,19.69387683]
[1741169016546,21.55427053,146.35,146.34,20.0]
[1741169016750,21.55427053,146.35,146.34,272.1531299]
[1741169017056,0.03,146.39,146.34,272.1531299]
[1741169017250,0.03,146.39,146.36,31.4531299]
[1741169017978,0.03,146.39,146.34,247.5333]
[1741169018280,0.03,146.39,146.34,278.9864299]
[1741169018491,0.03,146.39,146.34,240.7]
[1741169018658,18.67964886,146.37,146.34,220.7]
[1741169020778,25.51164886,146.37,146.34,220.7]
[1741169020988,0.28432314,146.36,146.34,82.3]
[1741169021373,25.62471043,146.35,146.34,82.3]
[1741169022689,18.79181043,146.34,146.3,82.3]
[1741169023476,18.64964886,146.32,146.3,82.3]
[1741169023880,6.8335,146.34,146.3,82.3]
[1741169024504,0.03,146.32,146.3,252.1531299]
[1741169024710,0.03,146.32,146.31,31.4531299]
[1741169025704,0.03,146.32,146.31,261.96493545]
[1741169025904,0.03,146.32,146.31,267.1769299]
[1741169026282,0.03,146.37,146.35,20.0]
[1741169026605,0.03,146.37,146.35,240.67]
[1741169026795,0.03,146.37,146.35,272.1231299]
[1741169026997,0.03,146.37,146.36,31.4531299]
[1741169027896,0.03,146.37,146.36,258.9555299]
[1741169028590,0.03,146.37,146.36,227.5024]
[1741169029792,0.03,146.37,146.36,220.67]
[1741169030395,0.03,146.37,146.36,227.5024]
[1741169030600,0.03,146.37,146.36,258.9555299]
[1741169031010,0.03,146.37,146.36,227.5024]
[1741169031609,0.03,146.37,146.36,220.67]
[1741169032987,0.03,146.37,146.36,227.5024]
[1741169033187,0.03,146.37,146.36,220.67]
[1741169034323,0.03,146.37,146.36,82.27]
[1741169038398,0.03,146.37,146.36,220.67]
[1741169041288,0.03,146.37,146.36,247.16961618]
[1741169041788,0.03,146.37,146.36,227.5024]
[1741169042825,0.03,146.37,146.36,220.67]
[1741169043642,0.03,146.37,146.36,227.5024]
[1741169044438,0.03,146.37,146.36,247.16961618]
[1741169044616,0.03,146.37,146.36,258.94500919]
[1741169047822,0.03,146.37,146.36,220.67]
[1741169050357,0.03,146.37,146.36,82.27]
[1741169051859,0.03,146.37,146.36,89.1024]
[1741169052219,0.03,146.37,146.36,82.27]
[1741169052626,0.03,146.37,146.36,220.67]
[1741169056165,0.03,146.37,146.36,227.5024]
[1741169056472,0.03,146.37,146.36,258.94500919]
[1741169056646,0.03,146.37,146.36,227.5024]
[1741169060562,0.03,146.37,146.36,258.94500919]
[1741169061967,0.03,146.37,146.36,227.5024]
[1741169062472,0.03,146.37,146.36,258.94500919]
[1741169063168,0.03,146.39,146.36,276.02610919]
[1741169063352,0.03,146.39,146.37,31.44260919]
[1741169064158,0.03,146.39,146.38,31.44260919]
[1741169064360,0.03,146.39,146.38,252.11260919]
[1741169065181,0.03,146.39,146.38,258.94410919]
[1741169065868,0.0001,146.39,146.38,260.60030919]
[1741169066073,0.0001,146.41,146.4,20.0]
[1741169066243,0.0001,146.41,146.4,272.11260919]
[1741169066741,0.0001,146.41,146.4,240.67]
[1741169067266,0.0001,146.41,146.4,267.14323738]
[1741169068081,0.0001,146.41,146.4,247.5006]
[1741169069567,0.0001,146.41,146.4,227.5006]
[1741169069765,0.0001,146.41,146.4,220.67]
[1741169070677,0.0001,146.41,146.4,227.5006]
[1741169071479,0.0001,146.41,146.4,247.14323738]
[1741169073175,0.0001,146.41,146.4,248.93926052]
[1741169073979,0.03,146.47,146.44,20.0]
[1741169074192,0.03,146.47,146.46,19.64263738]
[1741169074373,0.03,146.47,146.46,240.31263738]
[1741169075895,0.03,146.47,146.46,247.14043738]
[1741169076788,0.0001,146.47,146.46,260.49139441]
[1741169077295,0.0001,146.47,146.46,229.0986]
[1741169077599,0.0001,146.47,146.46,260.77571755]
[1741169079100,1.7729697,146.51,146.47,82.2699]
[1741169079277,1.7729697,146.51,146.49,31.39279441]
[1741169080106,1.7729697,146.51,146.49,220.6699]
[1741169080791,18.64964886,146.5,146.49,82.2699]
[1741169080989,0.14216157,146.49,146.43,227.499]
[1741169081378,25.02654886,146.5,146.44,31.39279441]
[1741169081582,0.14216157,146.49,146.44,220.6699]
[1741169082487,18.64964886,146.47,146.44,220.6699]
[1741169084709,6.8268,146.48,146.44,220.6699]
[1741169084897,18.933972,146.47,146.44,82.2699]
[1741169085220,18.933972,146.47,146.41,82.2699]
[1741169086519,18.79181043,146.47,146.41,82.2699]
[1741169087198,0.14216157,146.46,146.41,82.2699]
[1741169087409,0.14216157,146.46,146.41,220.6699]
[1741169088799,18.64964886,146.43,146.41,220.6699]
[1741169089009,25.62001043,146.45,146.41,220.6699]
[1741169089707,38.933972,146.41,146.38,82.3029]
[1741169091210,7.8585,146.47,146.4,31.39279441]
[1741169091390,6.2002,146.47,146.43,31.39279441]
[1741169091587,15.27859129,146.5,146.43,252.06269441]
[1741169091789,0.14216157,146.48,146.43,220.6699]
[1741169092308,18.64964886,146.49,146.43,220.6699]
[1741169092511,0.28432314,146.49,146.43,220.6699]
[1741169093709,0.28432314,146.49,146.43,227.4988]
[1741169094099,0.14216157,146.49,146.43,227.4988]
[1741169094313,6.96886157,146.49,146.43,82.2699]
[1741169094506,0.14216157,146.48,146.43,82.2699]
[1741169095713,0.28432314,146.49,146.43,227.499]
[1741169096013,0.28432314,146.49,146.43,258.89179441]
[1741169096191,0.28432314,146.49,146.43,227.499]
[1741169096887,0.03,146.48,146.43,227.499]
[1741169097106,0.03,146.48,146.43,258.89179441]
[1741169097693,0.03,146.48,146.43,227.499]
[1741169100210,0.03,146.48,146.43,275.96479441]
[1741169100408,0.03,146.48,146.46,31.39279441]
[1741169100601,0.03,146.48,146.47,31.39279441]
[1741169100806,1.8029697,146.51,146.47,252.06269441]
[1741169101117,1.8029697,146.51,146.48,31.39279441]
[1741169101315,1.8029697,146.51,146.47,252.06269441]
[1741169101520,1.8029697,146.51,146.48,6.8268]
[1741169102014,18.64964886,146.5,146.48,6.8268]
[1741169102822,18.64964886,146.5,146.48,220.6699]
[1741169104226,18.64964886,146.5,146.48,227.4965]
[1741169104921,1.8029697,146.51,146.48,227.4965]
[1741169106016,18.64964886,146.5,146.48,227.4965]
[1741169107929,1.8029697,146.51,146.48,227.4965]
[1741169108230,1.8029697,146.51,146.48,275.95639441]
[1741169108432,22.6729,146.61,146.48,275.95639441]
[1741169108433,82.9,146.66,146.56,2.0]
[1741169108601,13.97376759,146.68,146.56,84.2699]
[1741169108807,25.39562125,146.68,146.56,222.6699]
[1741169109007,0.28432314,146.6,146.57,2.0]
[1741169109331,21.37959115,146.64,146.6,2.0]
[1741169109542,21.37959115,146.64,146.6,222.6699]
[1741169110108,21.37959115,146.64,146.61,2.0]
[1741169110319,21.37959115,146.64,146.61,220.6699]
[1741169110527,21.37959115,146.64,146.63,2.0]
[1741169110726,21.37959115,146.64,146.63,222.6699]
[1741169111308,21.37959115,146.64,146.63,261.71389441]
[1741169111512,20.0,146.73,146.64,6.8194]
[1741169111835,20.0,146.73,146.69,2.0]
[1741169112040,20.0,146.73,146.69,222.6699]
[1741169112244,20.0,146.72,146.69,82.2699]
[1741169112531,18.64964886,146.71,146.69,82.2699]
[1741169113541,6.95876157,146.7,146.69,82.2699]
[1741169115014,18.64964886,146.71,146.69,82.2699]
[1741169115242,7.09942314,146.74,146.69,82.2699]
[1741169115456,0.28432314,146.72,146.69,82.2699]
[1741169115813,7.10002314,146.72,146.69,82.2699]
[1741169116014,6.2089,146.75,146.69,222.6699]
[1741169116213,6.8148,146.74,146.69,220.6699]
[1741169116464,18.933972,146.73,146.69,220.6699]
[1741169116615,18.933972,146.73,146.69,82.2699]
[1741169117237,18.933972,146.73,146.64,220.6699]
[1741169117677,18.933972,146.71,146.64,82.2699]
[1741169118448,101.833972,146.71,146.62,220.6699]
[1741169118747,25.582272,146.67,146.62,82.2699]
[1741169118980,18.79181043,146.63,146.62,82.2699]
[1741169119682,25.61161043,146.63,146.62,82.2699]
[1741169119975,25.753772,146.63,146.62,82.2699]
[1741169121351,42.803472,146.63,146.59,45.3591]
[1741169122957,0.14216157,146.62,146.56,183.7591]
[1741169123151,0.14216157,146.62,146.56,45.3591]
[1741169123658,18.933972,146.6,146.56,45.3591]
[1741169124779,18.79181043,146.6,146.56,47.3591]
[1741169125682,0.14216157,146.6,146.56,45.3591]
[1741169126658,18.933972,146.57,146.56,45.3591]
[1741169126956,18.933972,146.57,146.52,183.7591]
[1741169127157,23.8711,146.62,146.52,185.7591]
[1741169127472,0.28432314,146.61,146.53,2.0]
[1741169127658,20.0,146.59,146.54,2.0]
[1741169127990,6.8222,146.58,146.54,185.7591]
[1741169129085,6.8198,146.63,146.56,2.0]
[1741169129267,0.28432314,146.62,146.56,185.7591]
[1741169129664,18.933972,146.62,146.56,185.7591]
[1741169129880,6.8208,146.61,146.56,185.7591]
[1741169130071,6.6483,146.67,146.59,2.0]
[1741169130277,18.933972,146.66,146.59,185.7591]
[1741169130469,18.64964886,146.66,146.59,185.7591]
[1741169130987,18.79181043,146.63,146.6,2.0]
[1741169131290,0.14216157,146.65,146.61,2.0]
[1741169131496,0.28432314,146.65,146.6,45.3591]
[1741169131790,0.14216157,146.65,146.6,45.3591]
[1741169132002,0.14216157,146.65,146.6,47.3591]
[1741169132161,0.28432314,146.65,146.6,185.7591]
[1741169133184,18.79181043,146.64,146.6,185.7591]
[1741169133373,18.79181043,146.64,146.61,2.0]
[1741169133793,18.79181043,146.64,146.6,185.7591]
[1741169134095,18.79181043,146.64,146.61,2.0]
[1741169134476,18.79181043,146.64,146.6,185.7591]
[1741169134798,18.79181043,146.64,146.6,185.7921]
[1741169135394,6.8198,146.63,146.6,185.7921]
[1741169135571,6.8198,146.63,146.6,47.3921]
[1741169135896,18.79181043,146.62,146.6,45.3921]
[1741169136562,0.14216157,146.61,146.6,0.033]
[1741169137802,6.96296157,146.61,146.6,0.033]
[1741169137967,0.14216157,146.61,146.6,0.033]
[1741169139092,25.61261043,146.61,146.6,0.033]
[1741169139793,18.79181043,146.61,146.6,0.033]
[1741169140513,25.61261043,146.61,146.6,0.033]
[1741169141201,18.79181043,146.61,146.6,0.033]
[1741169141398,23.8637,146.67,146.6,47.3921]
[1741169141775,18.933972,146.66,146.6,47.3921]
[1741169141988,18.79181043,146.64,146.6,47.3921]
[1741169142195,18.64964886,146.64,146.6,47.3921]
[1741169143017,18.64964886,146.64,146.6,45.3921]
[1741169143503,6.8189,146.65,146.6,47.3921]
[1741169143806,6.8189,146.65,146.61,2.0]
[1741169145183,6.8189,146.65,146.61,185.7591]
[1741169146906,6.8489,146.65,146.61,185.7591]
[1741169147080,18.79181043,146.64,146.61,183.7591]
[1741169148216,6.8198,146.63,146.61,183.7591]
[1741169149308,18.79181043,146.62,146.61,183.7591]
[1741169149516,18.933972,146.62,146.6,0.033]
[1741169149807,18.64964886,146.62,146.6,0.033]
[1741169150596,6.96266157,146.62,146.6,0.033]
[1741169151710,6.96266157,146.62,146.6,45.3921]
[1741169152214,18.79181043,146.62,146.6,45.3921]
[1741169154311,18.79181043,146.62,146.6,47.3921]
[1741169155116,20.0,146.63,146.6,47.3921]
[1741169155299,0.03,146.65,146.62,2.0]
[1741169155501,0.03,146.65,146.63,2.0]
[1741169155908,18.67964886,146.65,146.63,2.0]
[1741169156221,0.14216157,146.64,146.63,2.0]
[1741169156417,0.14216157,146.64,146.6,54.2133]
[1741169156718,0.14216157,146.64,146.61,2.0]
[1741169156906,0.14216157,146.64,146.6,54.2133]
[1741169157719,0.14216157,146.64,146.61,2.0]
[1741169158318,6.8194,146.64,146.6,47.3921]
[1741169159223,6.8494,146.64,146.6,47.3921]
[1741169160096,6.8494,146.64,146.6,185.7921]
[1741169160395,0.17216157,146.64,146.6,185.7921]
[1741169160611,18.82181043,146.64,146.6,185.7921]
[1741169161726,0.14216157,146.63,146.6,183.7921]
[1741169161906,18.933972,146.63,146.6,45.3921]
[1741169162092,0.14216157,146.61,146.6,45.3921]
[1741169162420,25.61261043,146.61,146.6,45.3921]
[1741169162623,25.754772,146.61,146.6,45.3921]
[1741169166251,25.754772,146.61,146.6,0.033]
[1741169166732,0.28432314,146.6,146.56,45.3591]
[1741169168336,18.79181043,146.58,146.56,45.3591]
[1741169169937,0.28432314,146.6,146.56,45.3591]
[1741169170141,18.79181043,146.58,146.56,45.3591]
[1741169171406,0.14216157,146.57,146.56,45.3591]
[1741169171626,0.14216157,146.54,146.52,46.8654]
[1741169171822,0.28432314,146.54,146.52,45.3591]
[1741169172134,25.61631043,146.53,146.52,45.3591]
[1741169173237,18.79181043,146.52,146.48,46.9317]
[1741169173415,18.79181043,146.52,146.48,185.3317]
[1741169174040,6.8254,146.51,146.48,185.3317]
[1741169174237,18.79181043,146.5,146.48,183.7591]
[1741169175115,18.79181043,146.5,146.48,45.3591]
[1741169176251,6.4322,146.59,146.52,2.0]
[1741169176538,18.933972,146.57,146.52,47.3591]
[1741169176750,18.933972,146.57,146.52,185.7591]
[1741169176909,18.64964886,146.57,146.52,185.7591]
[1741169177113,18.64964886,146.57,146.53,2.0]
[1741169177312,0.28432314,146.56,146.52,183.7591]
[1741169178275,0.14216157,146.53,146.52,183.7591]
[1741169178481,0.14216157,146.53,146.52,45.3591]
[1741169179270,6.8222,146.58,146.52,45.3591]
[1741169179459,6.8222,146.58,146.54,2.0]
[1741169179662,17.0519,146.62,146.55,2.0]
[1741169179845,38.79181043,146.58,146.55,47.3591]
[1741169180384,6.8198,146.63,146.56,2.0]
[1741169180676,6.8198,146.63,146.58,2.0]
[1741169180844,18.64964886,146.62,146.58,2.0]
[1741169181041,18.64964886,146.62,146.59,2.0]
[1741169181246,0.14216157,146.61,146.59,47.3591]
[1741169181443,0.03,146.64,146.6,2.0]
[1741169181675,0.03,146.64,146.61,2.0]
[1741169181874,18.82181043,146.64,146.61,2.0]
[1741169182773,18.67964886,146.64,146.61,2.0]
[1741169183475,0.03,146.64,146.61,185.7591]
[1741169183669,0.03,146.64,146.63,2.0]
[1741169183971,0.03,146.64,146.63,47.3591]
[1741169184146,0.03,146.64,146.63,187.2784]
[1741169184778,0.03,146.64,146.61,183.7591]
[1741169185950,0.03,146.64,146.61,185.7591]
[1741169186155,0.03,146.64,146.63,2.0]
[1741169186665,0.03,146.64,146.62,2.0]
[1741169187070,0.03,146.64,146.63,2.0]
[1741169189366,0.03,146.64,146.63,185.7591]
[1741169190687,0.03,146.64,146.63,191.9009]
[1741169190855,0.03,146.65,146.64,2.0]
[1741169191049,0.03,146.65,146.64,8.8194]
[1741169192283,0.17216157,146.73,146.64,57.20856066]
[1741169192457,0.17216157,146.73,146.65,31.34066066]
[1741169192670,6.98736157,146.73,146.7,2.0]
[1741169192871,6.98736157,146.73,146.7,47.3591]
[1741169193202,0.03,146.73,146.72,2.0]
[1741169194180,0.03,146.73,146.72,185.7591]
[1741169195097,0.03,146.73,146.72,192.5748]
[1741169195303,0.03,146.73,146.72,185.7591]
[1741169196000,1.7729697,146.8,146.72,192.5748]
[1741169196177,1.7729697,146.8,146.79,2.0]
[1741169196502,1.7729697,146.8,146.79,185.7591]
[1741169196670,1.7729697,146.8,146.79,183.7591]
[1741169197004,27.23451856,146.8,146.79,45.3591]
[1741169197169,27.5188417,146.8,146.79,45.3591]
[1741169197568,18.933972,146.79,146.75,45.3591]
[1741169198177,0.14216157,146.77,146.75,45.3591]
[1741169198484,0.14216157,146.76,146.73,183.7591]
[1741169198675,0.14216157,146.76,146.73,45.3591]
[1741169199077,6.8129,146.78,146.74,2.0]
[1741169199302,6.8129,146.78,146.76,2.0]
[1741169199505,6.8124,146.79,146.77,2.0]
[1741169199679,8.5849697,146.8,146.77,2.0]
[1741169200001,1.7729697,146.8,146.78,2.0]
[1741169200194,1.7729697,146.8,146.79,2.0]
[1741169200384,1.7729697,146.8,146.79,185.7591]
[1741169200780,8.5848697,146.8,146.79,183.7591]
[1741169200985,1.7729697,146.8,146.79,183.7591]
[1741169201485,8.5848697,146.8,146.79,183.7591]
[1741169201806,1.7729697,146.8,146.79,185.7591]
[1741169203307,27.23451856,146.8,146.79,45.3591]
[1741169203876,0.1063697,146.8,146.79,218.61146066]
[1741169204197,0.1063697,146.8,146.79,225.42386066]
[1741169204510,6.8383,146.88,146.79,225.42386066]
[1741169204810,6.8383,146.88,146.8,31.34066066]
[1741169205110,0.03,146.88,146.85,2.0]
[1741169205288,0.03,146.88,146.85,185.7591]
[1741169205492,0.03,146.88,146.87,2.0]
[1741169205878,0.03,146.88,146.87,185.7591]
[1741169206289,0.03,146.88,146.87,187.352]
[1741169208092,0.03,146.88,146.87,185.352]
[1741169208289,0.03,146.88,146.87,183.7591]
[1741169211357,38.963972,146.88,146.87,0.0001]
[1741169211796,38.82181043,146.88,146.87,0.0001]
[1741169212502,25.63001043,146.88,146.87,0.0001]
[1741169216440,25.63001043,146.88,146.87,82.3001]
[1741169216936,0.14216157,146.86,146.84,185.5454]
[1741169217234,0.14216157,146.86,146.8,187.1614]
[1741169217634,0.14216157,146.86,146.8,189.1614]
[1741169218013,18.64964886,146.84,146.8,189.1614]
[1741169218220,23.8337,146.85,146.8,189.1614]
[1741169219248,23.8337,146.85,146.81,2.0]
[1741169219548,6.8096,146.85,146.81,2.0]